{"text_format":"3","workbook":"xlsx","n_sheets":5,"sheets":["Pano","Giderler ve Gelir","Bütçe Raporu","Veri Listeleri","Kategori PivotTable'ı"],"not_rendered":{"charts":3,"defined_names":18,"pivot_tables":2},"read":"whole","date_system":"1900"}

{"sheet":"Pano","index":0,"n_rows":21,"n_cols":16,"rows_kept":21,"merged":[[5,2,5,3]]}
[]
[null,null,"15 Günlük Ev Bütçesi",{"$nulls":12},"PANO"]
[]
[]
[]
[null,null,{"$f":"CHOOSE(AySayısı,\"Ocak\",\"Şubat\",\"Mart\",\"Nisan\",\"Mayis\",\"Haziran\",\"Temmuz\",\"Ağustos\",\"Eylül\",\"Ekim\",\"Kasim\",\"Aralik\")","v":"Ağustos"},null,8,{"$nulls":5},2012]
[]
[]
[null,null,"AY TOPLAMI","Monthly Totals",{"$nulls":5},"YIL TOPLAMI",null,"Annual Totals"]
[null,null,"GELİR","Giderler",{"$f":"SUMIF(Giderler[TARİH],\"<=\"&TarihAySonu,Giderler[TUTAR])-SUMIF(Giderler[TARİH],\"<\"&TarihAyBaşı,Giderler[TUTAR])","v":{"v":0,"d":"0 TL"}},{"$nulls":4},"GELİR",null,"Giderler",{"$f":"SUM(IF(YEAR(Giderler[TARİH])=K6,Giderler[TUTAR]))","v":{"v":6600,"d":"6,600 TL"}}]
[null,null,"GİDERLER","gelir",{"$f":"SUMIF(gelir[TARİH],\"<=\"&TarihAySonu,gelir[TUTAR])-SUMIF(gelir[TARİH],\"<\"&TarihAyBaşı,gelir[TUTAR])","v":{"v":0,"d":"0 TL"}},{"$nulls":4},"GİDERLER",null,"gelir",{"$f":"SUM(IF(YEAR(gelir[TARİH])=K6,gelir[TUTAR]))","v":{"v":0,"d":"0 TL"}}]
[]
[]
[]
[]
[]
[{"$nulls":3},"OCAK","ŞUBAT","MART","NİSAN","MAYIS","HAZİRAN","TEMMUZ","AĞUSTOS","EYLÜL","EKİM","KASIM","ARALIK"]
[null,null,"Gelir 1-15",{"$f":"SUMIFS(gelir[TUTAR],gelir[AÇIKLAMA],\"<=\"&TrhOrta,gelir[AÇIKLAMA],\">=\"&TrhBaşlangıç)","v":{"v":0,"d":"0.00 TL"}},{"$f":"SUMIFS(gelir[TUTAR],gelir[AÇIKLAMA],\"<=\"&TrhOrta,gelir[AÇIKLAMA],\">=\"&TrhBaşlangıç)","v":{"v":0,"d":"0.00 TL"}},{"$f":"SUMIFS(gelir[TUTAR],gelir[AÇIKLAMA],\"<=\"&TrhOrta,gelir[AÇIKLAMA],\">=\"&TrhBaşlangıç)","v":{"v":0,"d":"0.00 TL"}},{"$f":"SUMIFS(gelir[TUTAR],gelir[AÇIKLAMA],\"<=\"&TrhOrta,gelir[AÇIKLAMA],\">=\"&TrhBaşlangıç)","v":{"v":0,"d":"0.00 TL"}},{"$f":"SUMIFS(gelir[TUTAR],gelir[AÇIKLAMA],\"<=\"&TrhOrta,gelir[AÇIKLAMA],\">=\"&TrhBaşlangıç)","v":{"v":0,"d":"0.00 TL"}},{"$f":"SUMIFS(gelir[TUTAR],gelir[AÇIKLAMA],\"<=\"&TrhOrta,gelir[AÇIKLAMA],\">=\"&TrhBaşlangıç)","v":{"v":0,"d":"0.00 TL"}},{"$f":"SUMIFS(gelir[TUTAR],gelir[AÇIKLAMA],\"<=\"&TrhOrta,gelir[AÇIKLAMA],\">=\"&TrhBaşlangıç)","v":{"v":0,"d":"0.00 TL"}},{"$f":"SUMIFS(gelir[TUTAR],gelir[AÇIKLAMA],\"<=\"&TrhOrta,gelir[AÇIKLAMA],\">=\"&TrhBaşlangıç)","v":{"v":0,"d":"0.00 TL"}},{"$f":"SUMIFS(gelir[TUTAR],gelir[AÇIKLAMA],\"<=\"&TrhOrta,gelir[AÇIKLAMA],\">=\"&TrhBaşlangıç)","v":{"v":0,"d":"0.00 TL"}},{"$f":"SUMIFS(gelir[TUTAR],gelir[AÇIKLAMA],\"<=\"&TrhOrta,gelir[AÇIKLAMA],\">=\"&TrhBaşlangıç)","v":{"v":0,"d":"0.00 TL"}},{"$f":"SUMIFS(gelir[TUTAR],gelir[AÇIKLAMA],\"<=\"&TrhOrta,gelir[AÇIKLAMA],\">=\"&TrhBaşlangıç)","v":{"v":0,"d":"0.00 TL"}},{"$f":"SUMIFS(gelir[TUTAR],gelir[AÇIKLAMA],\"<=\"&TrhOrta,gelir[AÇIKLAMA],\">=\"&TrhBaşlangıç)","v":{"v":0,"d":"0.00 TL"}}]
[null,null,"Gelir 16-AS",{"$f":"SUMIFS(gelir[TUTAR],gelir[AÇIKLAMA],\"<=\"&TrhBitiş,gelir[AÇIKLAMA],\">=\"&TrhOrta+1)","v":{"v":0,"d":"0.00 TL"}},{"$f":"SUMIFS(gelir[TUTAR],gelir[AÇIKLAMA],\"<=\"&TrhBitiş,gelir[AÇIKLAMA],\">=\"&TrhOrta+1)","v":{"v":0,"d":"0.00 TL"}},{"$f":"SUMIFS(gelir[TUTAR],gelir[AÇIKLAMA],\"<=\"&TrhBitiş,gelir[AÇIKLAMA],\">=\"&TrhOrta+1)","v":{"v":0,"d":"0.00 TL"}},{"$f":"SUMIFS(gelir[TUTAR],gelir[AÇIKLAMA],\"<=\"&TrhBitiş,gelir[AÇIKLAMA],\">=\"&TrhOrta+1)","v":{"v":0,"d":"0.00 TL"}},{"$f":"SUMIFS(gelir[TUTAR],gelir[AÇIKLAMA],\"<=\"&TrhBitiş,gelir[AÇIKLAMA],\">=\"&TrhOrta+1)","v":{"v":0,"d":"0.00 TL"}},{"$f":"SUMIFS(gelir[TUTAR],gelir[AÇIKLAMA],\"<=\"&TrhBitiş,gelir[AÇIKLAMA],\">=\"&TrhOrta+1)","v":{"v":0,"d":"0.00 TL"}},{"$f":"SUMIFS(gelir[TUTAR],gelir[AÇIKLAMA],\"<=\"&TrhBitiş,gelir[AÇIKLAMA],\">=\"&TrhOrta+1)","v":{"v":0,"d":"0.00 TL"}},{"$f":"SUMIFS(gelir[TUTAR],gelir[AÇIKLAMA],\"<=\"&TrhBitiş,gelir[AÇIKLAMA],\">=\"&TrhOrta+1)","v":{"v":0,"d":"0.00 TL"}},{"$f":"SUMIFS(gelir[TUTAR],gelir[AÇIKLAMA],\"<=\"&TrhBitiş,gelir[AÇIKLAMA],\">=\"&TrhOrta+1)","v":{"v":0,"d":"0.00 TL"}},{"$f":"SUMIFS(gelir[TUTAR],gelir[AÇIKLAMA],\"<=\"&TrhBitiş,gelir[AÇIKLAMA],\">=\"&TrhOrta+1)","v":{"v":0,"d":"0.00 TL"}},{"$f":"SUMIFS(gelir[TUTAR],gelir[AÇIKLAMA],\"<=\"&TrhBitiş,gelir[AÇIKLAMA],\">=\"&TrhOrta+1)","v":{"v":0,"d":"0.00 TL"}},{"$f":"SUMIFS(gelir[TUTAR],gelir[AÇIKLAMA],\"<=\"&TrhBitiş,gelir[AÇIKLAMA],\">=\"&TrhOrta+1)","v":{"v":0,"d":"0.00 TL"}}]
[null,null,"Giderler 1-15",{"$f":"SUMIFS(Giderler[TUTAR],Giderler[TARİH],\"<=\"&TrhOrta,Giderler[TARİH],\">=\"&TrhBaşlangıç)","v":{"v":0,"d":"0.00 TL"}},{"$f":"SUMIFS(Giderler[TUTAR],Giderler[TARİH],\"<=\"&TrhBitiş,Giderler[TARİH],\">=\"&TrhBaşlangıç)","v":{"v":0,"d":"0.00 TL"}},{"$f":"SUMIFS(Giderler[TUTAR],Giderler[TARİH],\"<=\"&TrhBitiş,Giderler[TARİH],\">=\"&TrhBaşlangıç)","v":{"v":0,"d":"0.00 TL"}},{"$f":"SUMIFS(Giderler[TUTAR],Giderler[TARİH],\"<=\"&TrhBitiş,Giderler[TARİH],\">=\"&TrhBaşlangıç)","v":{"v":0,"d":"0.00 TL"}},{"$f":"SUMIFS(Giderler[TUTAR],Giderler[TARİH],\"<=\"&TrhBitiş,Giderler[TARİH],\">=\"&TrhBaşlangıç)","v":{"v":0,"d":"0.00 TL"}},{"$f":"SUMIFS(Giderler[TUTAR],Giderler[TARİH],\"<=\"&TrhBitiş,Giderler[TARİH],\">=\"&TrhBaşlangıç)","v":{"v":0,"d":"0.00 TL"}},{"$f":"SUMIFS(Giderler[TUTAR],Giderler[TARİH],\"<=\"&TrhBitiş,Giderler[TARİH],\">=\"&TrhBaşlangıç)","v":{"v":0,"d":"0.00 TL"}},{"$f":"SUMIFS(Giderler[TUTAR],Giderler[TARİH],\"<=\"&TrhBitiş,Giderler[TARİH],\">=\"&TrhBaşlangıç)","v":{"v":0,"d":"0.00 TL"}},{"$f":"SUMIFS(Giderler[TUTAR],Giderler[TARİH],\"<=\"&TrhBitiş,Giderler[TARİH],\">=\"&TrhBaşlangıç)","v":{"v":0,"d":"0.00 TL"}},{"$f":"SUMIFS(Giderler[TUTAR],Giderler[TARİH],\"<=\"&TrhBitiş,Giderler[TARİH],\">=\"&TrhBaşlangıç)","v":{"v":1225,"d":"1,225.00 TL"}},{"$f":"SUMIFS(Giderler[TUTAR],Giderler[TARİH],\"<=\"&TrhBitiş,Giderler[TARİH],\">=\"&TrhBaşlangıç)","v":{"v":5350,"d":"5,350.00 TL"}},{"$f":"SUMIFS(Giderler[TUTAR],Giderler[TARİH],\"<=\"&TrhBitiş,Giderler[TARİH],\">=\"&TrhBaşlangıç)","v":{"v":3642,"d":"3,642.00 TL"}}]
[null,null,"Giderler 16-AS",{"$f":"SUMIFS(Giderler[TUTAR],Giderler[TARİH],\"<=\"&TrhBitiş,Giderler[TARİH],\">=\"&TrhOrta+1)","v":{"v":0,"d":"0.00 TL"}},{"$f":"SUMIFS(Giderler[TUTAR],Giderler[TARİH],\"<=\"&TrhBitiş,Giderler[TARİH],\">=\"&TrhOrta+1)","v":{"v":0,"d":"0.00 TL"}},{"$f":"SUMIFS(Giderler[TUTAR],Giderler[TARİH],\"<=\"&TrhBitiş,Giderler[TARİH],\">=\"&TrhOrta+1)","v":{"v":0,"d":"0.00 TL"}},{"$f":"SUMIFS(Giderler[TUTAR],Giderler[TARİH],\"<=\"&TrhBitiş,Giderler[TARİH],\">=\"&TrhOrta+1)","v":{"v":0,"d":"0.00 TL"}},{"$f":"SUMIFS(Giderler[TUTAR],Giderler[TARİH],\"<=\"&TrhBitiş,Giderler[TARİH],\">=\"&TrhOrta+1)","v":{"v":0,"d":"0.00 TL"}},{"$f":"SUMIFS(Giderler[TUTAR],Giderler[TARİH],\"<=\"&TrhBitiş,Giderler[TARİH],\">=\"&TrhOrta+1)","v":{"v":0,"d":"0.00 TL"}},{"$f":"SUMIFS(Giderler[TUTAR],Giderler[TARİH],\"<=\"&TrhBitiş,Giderler[TARİH],\">=\"&TrhOrta+1)","v":{"v":0,"d":"0.00 TL"}},{"$f":"SUMIFS(Giderler[TUTAR],Giderler[TARİH],\"<=\"&TrhBitiş,Giderler[TARİH],\">=\"&TrhOrta+1)","v":{"v":0,"d":"0.00 TL"}},{"$f":"SUMIFS(Giderler[TUTAR],Giderler[TARİH],\"<=\"&TrhBitiş,Giderler[TARİH],\">=\"&TrhOrta+1)","v":{"v":0,"d":"0.00 TL"}},{"$f":"SUMIFS(Giderler[TUTAR],Giderler[TARİH],\"<=\"&TrhBitiş,Giderler[TARİH],\">=\"&TrhOrta+1)","v":{"v":1150,"d":"1,150.00 TL"}},{"$f":"SUMIFS(Giderler[TUTAR],Giderler[TARİH],\"<=\"&TrhBitiş,Giderler[TARİH],\">=\"&TrhOrta+1)","v":{"v":5150,"d":"5,150.00 TL"}},{"$f":"SUMIFS(Giderler[TUTAR],Giderler[TARİH],\"<=\"&TrhBitiş,Giderler[TARİH],\">=\"&TrhOrta+1)","v":{"v":2792,"d":"2,792.00 TL"}}]

{"sheet":"Giderler ve Gelir","index":1,"n_rows":40,"n_cols":10,"rows_kept":40}
[]
[null,null,"15 Günlük Ev Bütçesi",{"$nulls":6},"GELİR  VE GİDERLER"]
[]
[]
[]
[null,null,"GELİR",{"$nulls":3},"GİDERLER"]
[]
[null,null,"TARİH","AÇIKLAMA","TUTAR",null,"TARİH","KATEGORİ","AÇIKLAMA","TUTAR"]
[null,null,{"$f":"NOW()-14","v":"2013-01-17T22:13:29.830"},"Deniz'in maaşı",{"v":1300,"d":"1,300.00 TL"},null,{"$f":"NOW()-7","v":"2013-01-24T22:13:29.830"},"Ev","Konut Kredisi",{"v":1000,"d":"1,000.00 TL"}]
[null,null,{"$f":"NOW()-14","v":"2013-01-17T22:13:29.830"},"Pelin'in maaşı",{"v":1300,"d":"1,300.00 TL"},null,{"$f":"NOW()-7","v":"2013-01-24T22:13:29.830"},"Ev","Elektrik",{"v":100,"d":"100.00 TL"}]
[null,null,{"$f":"NOW()-28","v":"2013-01-03T22:13:29.830"},"Deniz'in maaşı",{"v":1500,"d":"1,500.00 TL"},null,"2013-01-24T22:13:29.830","Ev","Su/kanalizasyon",{"v":50,"d":"50.00 TL"}]
[null,null,"2013-01-03T22:13:29.830","Pelin'in maaşı",{"v":1600,"d":"1,600.00 TL"},null,"2013-01-24T22:13:29.830","Ev","Çöp",{"v":25,"d":"25.00 TL"}]
[null,null,{"$f":"NOW()-42","v":"2012-12-20T22:13:29.830"},"Deniz'in maaşı",{"v":1300,"d":"1,300.00 TL"},null,"2013-01-24T22:13:29.830","Ev","Cep telefonu",{"v":100,"d":"100.00 TL"}]
[null,null,"2012-12-20T22:13:29.830","Pelin'in maaşı",{"v":1300,"d":"1,300.00 TL"},null,"2013-01-24T22:13:29.830","Ev","Ev telefonu",{"v":30,"d":"30.00 TL"}]
[null,null,{"$f":"NOW()-56","v":"2012-12-06T22:13:29.830"},"Deniz'in maaşı",{"v":1500,"d":"1,500.00 TL"},null,"2013-01-24T22:13:29.830","Ev","Internet",{"v":50,"d":"50.00 TL"}]
[null,null,"2012-12-06T22:13:29.830","Pelin'in maaşı",{"v":1600,"d":"1,600.00 TL"},null,"2013-01-24T22:13:29.830","Ev","Televizyon",{"v":50,"d":"50.00 TL"}]
[null,null,{"$f":"NOW()-70","v":"2012-11-22T22:13:29.830"},"Deniz'in maaşı",{"v":1300,"d":"1,300.00 TL"},null,"2013-01-24T22:13:29.830","Ev","Bakım/onarım",{"v":25,"d":"25.00 TL"}]
[{"$nulls":6},{"$f":"NOW()-8","v":"2013-01-23T22:13:29.830"},"Ev","Kredi Kartı 1",{"v":100,"d":"100.00 TL"}]
[{"$nulls":6},{"$f":"NOW()-9","v":"2013-01-22T22:13:29.830"},"Eğlence","Sinema",{"v":37,"d":"37.00 TL"}]
[{"$nulls":6},{"$f":"NOW()-10","v":"2013-01-21T22:13:29.830"},"Gıda","Market",{"v":350,"d":"350.00 TL"}]
[{"$nulls":6},{"$f":"NOW()-11","v":"2013-01-20T22:13:29.830"},"Gıda","Dışarıda yemek",{"v":75,"d":"75.00 TL"}]
[{"$nulls":6},{"$f":"NOW()-12","v":"2013-01-19T22:13:29.830"},"Çocuklar","Yemek harçlığı",{"v":150,"d":"150.00 TL"}]
[{"$nulls":6},{"$f":"NOW()-13","v":"2013-01-18T22:13:29.830"},"Yatırım Hesapları","Birikim",{"v":250,"d":"250.00 TL"}]
[{"$nulls":6},{"$f":"NOW()-14","v":"2013-01-17T22:13:29.830"},"Yatırım Hesapları","Yatırım hesabı",{"v":250,"d":"250.00 TL"}]
[{"$nulls":6},{"$f":"NOW()-15","v":"2013-01-16T22:13:29.830"},"Kişisel","Spor salonu",{"v":100,"d":"100.00 TL"}]
[{"$nulls":6},{"$f":"NOW()-16","v":"2013-01-15T22:13:29.830"},"Evcil hayvanlar","Gıda",{"v":50,"d":"50.00 TL"}]
[{"$nulls":6},{"$f":"NOW()-20","v":"2013-01-11T22:13:29.830"},"Evcil hayvanlar","Hayvan kuaförü",{"v":50,"d":"50.00 TL"}]
[{"$nulls":6},{"$f":"NOW()-20","v":"2013-01-11T22:13:29.830"},"Evcil hayvanlar","Diğer",{"v":50,"d":"50.00 TL"}]
[{"$nulls":6},{"$f":"NOW()-25","v":"2013-01-06T22:13:29.830"},"Ulaşım","Araç 1 Ödemesi",{"v":300,"d":"300.00 TL"}]
[{"$nulls":6},{"$f":"NOW()-25","v":"2013-01-06T22:13:29.830"},"Ulaşım","Araç 2 Ödemesi",{"v":350,"d":"350.00 TL"}]
[{"$nulls":6},{"$f":"NOW()-25","v":"2013-01-06T22:13:29.830"},"Ulaşım","Araç Sigortası",{"v":50,"d":"50.00 TL"}]
[{"$nulls":6},{"$f":"NOW()-30","v":"2013-01-01T22:13:29.830"},"Ulaşım","Yakıt",{"v":50,"d":"50.00 TL"}]
[{"$nulls":6},{"$f":"NOW()-31","v":"2012-12-31T22:13:29.830"},"Ulaşım","Yakıt",{"v":25,"d":"25.00 TL"}]
[{"$nulls":6},{"$f":"NOW()-42","v":"2012-12-20T22:13:29.830"},"Ulaşım","Bakım/Onarım",{"v":150,"d":"150.00 TL"}]
[{"$nulls":6},{"$f":"NOW()-45","v":"2012-12-17T22:13:29.830"},"Ev","Konut Kredisi",{"v":5000,"d":"5,000.00 TL"}]
[{"$nulls":6},{"$f":"NOW()-50","v":"2012-12-12T22:13:29.830"},"Ev","Sarf malzemeleri",{"v":200,"d":"200.00 TL"}]
[{"$nulls":6},{"$f":"NOW()-65","v":"2012-11-27T22:13:29.830"},"Ev","Ev telefonu",{"v":100,"d":"100.00 TL"}]
[{"$nulls":6},{"$f":"NOW()-70","v":"2012-11-22T22:13:29.830"},"Ev","Çöp",{"v":50,"d":"50.00 TL"}]
[{"$nulls":6},{"$f":"NOW()-75","v":"2012-11-17T22:13:29.830"},"Ev","Konut Kredisi",{"v":1000,"d":"1,000.00 TL"}]
[{"$nulls":6},{"$f":"NOW()-78","v":"2012-11-14T22:13:29.830"},"Eğlence","Sinema",{"v":75,"d":"75.00 TL"}]

{"sheet":"Bütçe Raporu","index":2,"n_rows":41,"n_cols":8,"rows_kept":41}
[]
[null,null,"15 Günlük Ev Bütçesi",{"$nulls":4},"BÜTÇE RAPORU"]
{"$rows_empty":10}
[null,null,"GİDERLER",null,null,"GİDERLER"]
[]
[null,null,"AÇIKLAMA","Toplam TUTAR"]
[null,null,"Araç 1 Ödemesi",300]
[null,null,"Araç 2 Ödemesi",350]
[null,null,"Araç Sigortası",50]
[null,null,"Bakım/onarım",175]
[null,null,"Birikim",250]
[null,null,"Cep telefonu",100]
[null,null,"Çöp",75]
[null,null,"Dışarıda yemek",75]
[null,null,"Diğer",50]
[null,null,"Elektrik",100]
[null,null,"Ev telefonu",130]
[null,null,"Gıda",50]
[null,null,"Hayvan kuaförü",50]
[null,null,"Internet",50]
[null,null,"Konut Kredisi",7000]
[null,null,"Kredi Kartı 1",100]
[null,null,"Market",350]
[null,null,"Sarf malzemeleri",200]
[null,null,"Sinema",112]
[null,null,"Spor salonu",100]
[null,null,"Su/kanalizasyon",50]
[null,null,"Televizyon",50]
[null,null,"Yakıt",75]
[null,null,"Yatırım hesabı",250]
[null,null,"Yemek harçlığı",150]
[null,null,"TOPLAM",10242]

{"sheet":"Veri Listeleri","index":3,"n_rows":20,"n_cols":14,"rows_kept":20}
[]
[null,null,"15 Günlük Ev Bütçesi",{"$nulls":10},"VERİ LİSTELERİ"]
[]
[]
[null,null,"KURULUM          Aşağıdaki kategori verileri, Giderler ve Gelir sayfasındaki Giderler tablosunda açılır listeler oluşturur. Listeleri güncelleştirmek için kategori adlarını ya da her kategorinin altındaki açıklamaları değiştirin."]
[]
[null,null,"Ev","Eğlence","Gıda","Hediyeler/Bağışlar","Çocuklar","Yatırım Hesapları","Sağlık","Diğer","Kişisel","Evcil hayvanlar","Vergiler/Kanun","Ulaşım"]
[null,null,"Konut Kredisi","Sinema","Market","Bağış 1","Giyim","Bireysel Emeklilik","Doktor/Klinik","Diğer","Giyim","Gıda","Emlak Vergisi","Araç 1 Ödemesi"]
[null,null,"Elektrik","Video/Film","Dışarıda yemek","Bağış 2","Oyuncaklar/Oyunlar","Birikim","Sigorta","Kuruluş Alacakları","Saç/Tırnak bakımı","Sarf malzemeleri","Şehir","Araç 2 Ödemesi"]
[null,null,"Su/Kanalizasyon","Müzik",null,"Bağış 3","Yemek harçlığı","Çek",null,null,"Kuru temizleme","Sağlık","Yerel","Araç Sigortası"]
[null,null,"Çöp","Konser/Tiyatro",null,"Hediye","Alacaklar/Ücretler","Emeklilik",null,null,"Spor salonu","Hayvan kuaförü","Diğer","Ruhsat/Kayıt"]
[null,null,"Cep telefonu","Spor etkinlikleri",null,null,"Okul gereçleri","Yatırım hesabı",null,null,"Alışveriş","Diğer","Avukat","Yakıt"]
[null,null,"Ev telefonu","Diğer",null,null,"Diğer","Eğitim için yapılan birikimler",null,null,"Diğer",null,"Çocuk desteği","Bakım/Onarım"]
[null,null,"Internet",{"$nulls":3},"Çamaşır","Krediler",{"$nulls":4},"Nafaka","Toplu taşıma"]
[null,null,"Televizyon",{"$nulls":4},"Öğrenci kredileri",{"$nulls":4},"Diğer"]
[null,null,"Bakım/Onarım"]
[null,null,"Sarf malzemeleri"]
[null,null,"Kablo TV/Internet/Telefon"]
[null,null,"Kredi Kartı 1"]
[null,null,"Kredi Kartı 2"]

{"sheet":"Kategori PivotTable'ı","index":4,"n_rows":16,"n_cols":14,"rows_kept":16,"hidden":true}
[]
[null,null,"15 Günlük Ev Bütçesi",{"$nulls":10},"KATEGORİ ÖZETİ"]
[]
[]
[null,"Bu PivotTable, Bütçe Raporu'ndaki Kategori Toplamları PivotChart'ı için veri kaynağıdır. "]
[]
[null,null,"Satır Etiketleri","Toplam TUTAR"]
[null,null,"Çocuklar",{"v":150,"d":"150 TL"}]
[null,null,"Eğlence",{"v":112,"d":"112 TL"}]
[null,null,"Ev",{"v":7880,"d":"7,880 TL"}]
[null,null,"Evcil hayvanlar",{"v":150,"d":"150 TL"}]
[null,null,"Gıda",{"v":425,"d":"425 TL"}]
[null,null,"Kişisel",{"v":100,"d":"100 TL"}]
[null,null,"Ulaşım",{"v":925,"d":"925 TL"}]
[null,null,"Yatırım Hesapları",{"v":500,"d":"500 TL"}]
[null,null,"Genel Toplam",{"v":10242,"d":"10,242 TL"}]